[Event "*** Titled Tuesday Blitz"]
[Site "Chess.com"]
[Date "2021.02.09"]
[Round "8"]
[White "vladgoncharov"]
[Black "wannabe2700"]
[Result "0-1"]
[WhiteElo "2491"]
[BlackElo "2753"]
[TimeControl "180+1"]
[EndTime "11:30:08 PST"]
[Termination "wannabe2700 won on time"]

1. e4 {[%clk 0:02:59]} 1... c6 {[%clk 0:02:59.9]} 2. d4 {[%clk 0:02:58.1]} 2...
d5 {[%clk 0:03:00.8]} 3. e5 {[%clk 0:02:58.6]} 3... Bf5 {[%clk 0:03:00.9]} 4.
Nf3 {[%clk 0:02:59.2]} 4... e6 {[%clk 0:03:01.3]} 5. Be2 {[%clk 0:02:58.8]} 5...
c5 {[%clk 0:03:01.1]} 6. O-O {[%clk 0:02:57.9]} 6... Nc6 {[%clk 0:03:00.8]} 7.
Be3 {[%clk 0:02:57.2]} 7... cxd4 {[%clk 0:03:00.4]} 8. Nxd4 {[%clk 0:02:56.7]}
8... Nxd4 {[%clk 0:03:00.9]} 9. Bxd4 {[%clk 0:02:56.3]} 9... Ne7 {[%clk
0:03:01.8]} 10. c4 {[%clk 0:02:54.7]} 10... Nc6 {[%clk 0:03:00.3]} 11. cxd5
{[%clk 0:02:54.2]} 11... Qxd5 {[%clk 0:02:57.6]} 12. Bc3 {[%clk 0:02:54]} 12...
Qxd1 {[%clk 0:02:51.9]} 13. Rxd1 {[%clk 0:02:53.3]} 13... Rd8 {[%clk 0:02:32.8]}
14. Nd2 {[%clk 0:02:47.7]} 14... Bb4 {[%clk 0:01:51.6]} 15. Bxb4 {[%clk
0:02:25.2]} 15... Nxb4 {[%clk 0:01:52.5]} 16. Nc4 {[%clk 0:02:24.9]} 16... Ke7
{[%clk 0:01:45.8]} 17. Nd6 {[%clk 0:02:19.3]} 17... Rd7 {[%clk 0:00:52.8]} 18.
Bf3 {[%clk 0:02:03.3]} 18... Rb8 {[%clk 0:00:31]} 19. Rd2 {[%clk 0:01:55.9]}
19... Nd3 {[%clk 0:00:20.5]} 20. Rad1 {[%clk 0:01:53.8]} 20... Nxe5 {[%clk
0:00:19.6]} 21. Nxf5+ {[%clk 0:01:17]} 21... exf5 {[%clk 0:00:19.6]} 22. Rxd7+
{[%clk 0:01:17.5]} 22... Nxd7 {[%clk 0:00:18.9]} 23. Re1+ {[%clk 0:01:10.9]}
23... Kf8 {[%clk 0:00:17]} 24. Bd5 {[%clk 0:01:10.1]} 24... b6 {[%clk
0:00:15.8]} 25. Rc1 {[%clk 0:01:09.2]} 25... Ke7 {[%clk 0:00:15.1]} 26. Bf3
{[%clk 0:01:01.9]} 26... Nc5 {[%clk 0:00:15.3]} 27. b4 {[%clk 0:01:01]} 27...
Ne6 {[%clk 0:00:15.9]} 28. h4 {[%clk 0:00:55.7]} 28... Rd8 {[%clk 0:00:15.8]}
29. a4 {[%clk 0:00:53.5]} 29... Rd4 {[%clk 0:00:15.8]} 30. Rb1 {[%clk
0:00:51.1]} 30... Rxh4 {[%clk 0:00:15.9]} 31. a5 {[%clk 0:00:50.4]} 31... Rd4
{[%clk 0:00:12.4]} 32. axb6 {[%clk 0:00:40.4]} 32... axb6 {[%clk 0:00:13.3]} 33.
b5 {[%clk 0:00:40.7]} 33... Nc7 {[%clk 0:00:12.5]} 34. Bc6 {[%clk 0:00:39.5]}
34... Kd6 {[%clk 0:00:11.8]} 35. Ra1 {[%clk 0:00:38.6]} 35... Rb4 {[%clk
0:00:12.1]} 36. Rd1+ {[%clk 0:00:33.8]} 36... Ke6 {[%clk 0:00:11.4]} 37. Re1+
{[%clk 0:00:27.7]} 37... Kf6 {[%clk 0:00:11.8]} 38. Rd1 {[%clk 0:00:25.9]} 38...
Nxb5 {[%clk 0:00:12.1]} 39. Rd7 {[%clk 0:00:25.7]} 39... Nd4 {[%clk 0:00:11.9]}
40. Bd5 {[%clk 0:00:25.5]} 40... Ne6 {[%clk 0:00:11.6]} 41. Rb7 {[%clk
0:00:24.6]} 41... g5 {[%clk 0:00:11.1]} 42. g3 {[%clk 0:00:23.9]} 42... h5
{[%clk 0:00:11.3]} 43. Kg2 {[%clk 0:00:23.8]} 43... f4 {[%clk 0:00:10.5]} 44.
Rb8 {[%clk 0:00:22.8]} 44... fxg3 {[%clk 0:00:10]} 45. fxg3 {[%clk 0:00:22.8]}
45... Ke5 {[%clk 0:00:10.6]} 46. Bf3 {[%clk 0:00:21.2]} 46... g4 {[%clk
0:00:10.7]} 47. Bb7 {[%clk 0:00:19.2]} 47... Rb2+ {[%clk 0:00:10.5]} 48. Kg1
{[%clk 0:00:17.9]} 48... Nd4 {[%clk 0:00:11]} 49. Bc8 {[%clk 0:00:15.8]} 49...
Nf3+ {[%clk 0:00:10]} 50. Kf1 {[%clk 0:00:15.5]} 50... f5 {[%clk 0:00:10.3]} 51.
Rb7 {[%clk 0:00:13.3]} 51... f4 {[%clk 0:00:09.3]} 52. Re7+ {[%clk 0:00:11.1]}
52... Kd6 {[%clk 0:00:09.8]} 53. Re6+ {[%clk 0:00:08]} 53... Kc7 {[%clk
0:00:10.2]} 54. gxf4 {[%clk 0:00:04.1]} 54... g3 {[%clk 0:00:06.7]} 0-1

[Event "*** Titled Tuesday Blitz"]
[Site "Chess.com"]
[Date "2021.02.09"]
[Round "8"]
[White "Kostukov_Alex"]
[Black "ErikBlomqvist"]
[Result "0-1"]
[WhiteElo "2379"]
[BlackElo "2523"]
[TimeControl "180+1"]
[EndTime "11:30:08 PST"]
[Termination "ErikBlomqvist won on time"]

1. g3 {[%clk 0:03:00.9]} 1... c5 {[%clk 0:02:59.3]} 2. Bg2 {[%clk 0:03:00.7]}
2... Nc6 {[%clk 0:02:59.6]} 3. c4 {[%clk 0:03:01.1]} 3... g6 {[%clk 0:02:59.8]}
4. Nf3 {[%clk 0:03:01.7]} 4... Bg7 {[%clk 0:03:00.2]} 5. O-O {[%clk 0:03:01.4]}
5... d6 {[%clk 0:03:00.7]} 6. Nc3 {[%clk 0:03:01]} 6... Bf5 {[%clk 0:03:00.4]}
7. d3 {[%clk 0:02:52]} 7... Qd7 {[%clk 0:03:00.7]} 8. Re1 {[%clk 0:02:50.5]}
8... Bh3 {[%clk 0:03:00.1]} 9. Bh1 {[%clk 0:02:50.8]} 9... h6 {[%clk 0:02:42.8]}
10. Rb1 {[%clk 0:02:42.5]} 10... Nf6 {[%clk 0:02:41.2]} 11. a3 {[%clk
0:02:41.7]} 11... a5 {[%clk 0:02:39.4]} 12. Bd2 {[%clk 0:02:33.3]} 12... O-O
{[%clk 0:02:35.4]} 13. Nd5 {[%clk 0:02:23.5]} 13... Nxd5 {[%clk 0:02:35]} 14.
cxd5 {[%clk 0:02:24]} 14... Nd4 {[%clk 0:02:35.7]} 15. Nxd4 {[%clk 0:02:21.4]}
15... cxd4 {[%clk 0:02:36.6]} 16. Qb3 {[%clk 0:02:11.4]} 16... Rfc8 {[%clk
0:02:22.4]} 17. Rbc1 {[%clk 0:02:07.5]} 17... Rc5 {[%clk 0:02:12.8]} 18. Rxc5
{[%clk 0:01:52.9]} 18... dxc5 {[%clk 0:02:13.7]} 19. a4 {[%clk 0:01:53.2]} 19...
h5 {[%clk 0:01:52.2]} 20. Rc1 {[%clk 0:01:41.9]} 20... Rc8 {[%clk 0:01:39.3]}
21. Bxa5 {[%clk 0:01:38.7]} 21... Bh6 {[%clk 0:01:34.7]} 22. Rc2 {[%clk
0:01:16.3]} 22... h4 {[%clk 0:01:18.6]} 23. Bd2 {[%clk 0:01:06.5]} 23... Bxd2
{[%clk 0:01:15]} 24. Rxd2 {[%clk 0:01:06.4]} 24... Ra8 {[%clk 0:01:11.1]} 25.
Rd1 {[%clk 0:00:39.3]} 25... Rxa4 {[%clk 0:00:59.2]} 26. Qc2 {[%clk 0:00:32]}
26... b6 {[%clk 0:00:55.8]} 27. b3 {[%clk 0:00:28.7]} 27... Ra3 {[%clk 0:00:43]}
28. Rb1 {[%clk 0:00:27.7]} 28... Qa7 {[%clk 0:00:40.7]} 29. Bg2 {[%clk
0:00:27.1]} 29... Ra2 {[%clk 0:00:39.1]} 30. Rb2 {[%clk 0:00:27.3]} 30... Ra1+
{[%clk 0:00:35.5]} 31. Rb1 {[%clk 0:00:27.6]} 31... Bg4 {[%clk 0:00:30.9]} 32.
f3 {[%clk 0:00:19.9]} 32... Bd7 {[%clk 0:00:28.4]} 33. gxh4 {[%clk 0:00:18.2]}
33... Qa5 {[%clk 0:00:23.5]} 34. Kf2 {[%clk 0:00:16.7]} 34... Ra2 {[%clk
0:00:20.6]} 35. Rb2 {[%clk 0:00:16.1]} 35... Ra1 {[%clk 0:00:21.1]} 36. Rb1
{[%clk 0:00:16.1]} 36... Rxb1 {[%clk 0:00:20.7]} 37. Qxb1 {[%clk 0:00:15.9]}
37... Qd2 {[%clk 0:00:21.3]} 38. Qe1 {[%clk 0:00:12]} 38... Qb2 {[%clk
0:00:17.5]} 39. Qd1 {[%clk 0:00:10.9]} 39... Kg7 {[%clk 0:00:14.4]} 40. Kg3
{[%clk 0:00:09.5]} 40... Qc3 {[%clk 0:00:11.6]} 41. f4 {[%clk 0:00:09.3]} 41...
Bf5 {[%clk 0:00:07.6]} 42. Bf3 {[%clk 0:00:09]} 42... Kf6 {[%clk 0:00:07]} 43.
h5 {[%clk 0:00:09.1]} 43... gxh5 {[%clk 0:00:05.9]} 44. Bxh5 {[%clk 0:00:09.4]}
44... b5 {[%clk 0:00:05.6]} 45. Bf3 {[%clk 0:00:09.4]} 45... Qb4 {[%clk
0:00:05]} 46. Qc2 {[%clk 0:00:08.9]} 46... Qc3 {[%clk 0:00:04.7]} 47. Qd1 {[%clk
0:00:08.2]} 47... Qb2 {[%clk 0:00:04.6]} 48. Be4 {[%clk 0:00:06.6]} 48... Bxe4
{[%clk 0:00:02]} 49. dxe4 {[%clk 0:00:07]} 49... c4 {[%clk 0:00:02]} 50. e5+
{[%clk 0:00:05.2]} 50... Kf5 {[%clk 0:00:02.2]} 51. bxc4 {[%clk 0:00:02.7]}
51... bxc4 {[%clk 0:00:03.1]} 52. d6 {[%clk 0:00:03.2]} 52... Qc3+ {[%clk
0:00:03.6]} 53. Kg2 {[%clk 0:00:01.3]} 53... exd6 {[%clk 0:00:04.5]} 54. exd6
{[%clk 0:00:01.2]} 54... Ke6 {[%clk 0:00:05.2]} 0-1

[Event "*** Titled Tuesday Blitz"]
[Site "Chess.com"]
[Date "2021.02.09"]
[Round "8"]
[White "Skat2704"]
[Black "Vincent_Vega95"]
[Result "0-1"]
[WhiteElo "2533"]
[BlackElo "2731"]
[TimeControl "180+1"]
[EndTime "11:30:12 PST"]
[Termination "Vincent_Vega95 won by resignation"]

1. d4 {[%clk 0:02:59.1]} 1... Nf6 {[%clk 0:02:59.9]} 2. c4 {[%clk 0:02:58.8]}
2... g6 {[%clk 0:03:00.4]} 3. Nc3 {[%clk 0:02:58.4]} 3... Bg7 {[%clk 0:03:01.3]}
4. e4 {[%clk 0:02:58.1]} 4... d6 {[%clk 0:03:01.9]} 5. Nf3 {[%clk 0:02:57.9]}
5... O-O {[%clk 0:03:02.8]} 6. Be2 {[%clk 0:02:58.2]} 6... e5 {[%clk 0:03:03]}
7. dxe5 {[%clk 0:02:58.5]} 7... dxe5 {[%clk 0:03:02.9]} 8. Qxd8 {[%clk 0:02:59]}
8... Rxd8 {[%clk 0:03:03]} 9. Bg5 {[%clk 0:02:59.6]} 9... Re8 {[%clk 0:02:58.5]}
10. O-O {[%clk 0:02:59.1]} 10... c6 {[%clk 0:02:55.7]} 11. Nd2 {[%clk
0:02:57.5]} 11... Na6 {[%clk 0:02:37.7]} 12. f3 {[%clk 0:02:46.9]} 12... Nh5
{[%clk 0:02:34.3]} 13. Rfd1 {[%clk 0:02:25.3]} 13... Nf4 {[%clk 0:02:31.3]} 14.
Bxf4 {[%clk 0:02:10.7]} 14... exf4 {[%clk 0:02:28.7]} 15. Nb3 {[%clk 0:02:09.4]}
15... f5 {[%clk 0:02:00.3]} 16. Bd3 {[%clk 0:01:59.9]} 16... Nc7 {[%clk
0:01:11.8]} 17. exf5 {[%clk 0:01:54]} 17... gxf5 {[%clk 0:01:12.7]} 18. Na5
{[%clk 0:01:40.9]} 18... Bd4+ {[%clk 0:00:46.7]} 19. Kf1 {[%clk 0:01:38.1]}
19... Bb6 {[%clk 0:00:47]} 20. Nb3 {[%clk 0:01:36.3]} 20... Be3 {[%clk
0:00:47.5]} 21. Ne2 {[%clk 0:01:28.7]} 21... Kf7 {[%clk 0:00:40]} 22. Nbd4
{[%clk 0:01:24.2]} 22... Kf6 {[%clk 0:00:38.9]} 23. Nc2 {[%clk 0:01:22.9]} 23...
Ne6 {[%clk 0:00:36.6]} 24. g3 {[%clk 0:01:14.4]} 24... b6 {[%clk 0:00:29.9]} 25.
gxf4 {[%clk 0:01:02.5]} 25... Bxf4 {[%clk 0:00:29.6]} 26. Ncd4 {[%clk
0:00:57.8]} 26... Bxh2 {[%clk 0:00:21.6]} 27. Nxe6 {[%clk 0:00:56.5]} 27... Bxe6
{[%clk 0:00:20.8]} 28. Nd4 {[%clk 0:00:55.7]} 28... Bd7 {[%clk 0:00:19.7]} 29.
Kg2 {[%clk 0:00:50.5]} 29... Be5 {[%clk 0:00:20]} 30. Ne2 {[%clk 0:00:50.4]}
30... Rg8+ {[%clk 0:00:19.8]} 31. Kf2 {[%clk 0:00:50.2]} 31... Bxb2 {[%clk
0:00:18.9]} 32. Rab1 {[%clk 0:00:49.4]} 32... Ba3 {[%clk 0:00:19.6]} 33. Rh1
{[%clk 0:00:48.6]} 33... Bc5+ {[%clk 0:00:19.3]} 34. Ke1 {[%clk 0:00:48.9]}
34... Rg7 {[%clk 0:00:16.6]} 35. Kd2 {[%clk 0:00:46.4]} 35... Re8 {[%clk
0:00:16.3]} 36. Rh6+ {[%clk 0:00:45.7]} 36... Kf7 {[%clk 0:00:16.9]} 37. Rh3
{[%clk 0:00:43.7]} 37... Be3+ {[%clk 0:00:17]} 38. Kc2 {[%clk 0:00:43.8]} 38...
h6 {[%clk 0:00:17.3]} 39. Rbh1 {[%clk 0:00:37.5]} 39... Rg2 {[%clk 0:00:16.8]}
40. Rh5 {[%clk 0:00:34.2]} 40... c5 {[%clk 0:00:14]} 41. Kd1 {[%clk 0:00:33.1]}
41... Ba4+ {[%clk 0:00:13.6]} 42. Ke1 {[%clk 0:00:31.7]} 42... Rd8 {[%clk
0:00:14.1]} 43. Rxf5+ {[%clk 0:00:30.4]} 43... Kg7 {[%clk 0:00:13]} 44. Rd5
{[%clk 0:00:15]} 44... Rxd5 {[%clk 0:00:13]} 45. cxd5 {[%clk 0:00:15.2]} 45...
Bd7 {[%clk 0:00:13.4]} 46. Be4 {[%clk 0:00:14.5]} 46... c4 {[%clk 0:00:11.9]}
47. d6 {[%clk 0:00:11.5]} 47... b5 {[%clk 0:00:11.2]} 48. a3 {[%clk 0:00:11]}
48... a5 {[%clk 0:00:11.1]} 49. Nc3 {[%clk 0:00:11]} 49... b4 {[%clk 0:00:11.1]}
50. axb4 {[%clk 0:00:10.9]} 50... axb4 {[%clk 0:00:12]} 51. Nd5 {[%clk
0:00:11.5]} 51... Bc5 {[%clk 0:00:12.3]} 52. Kf1 {[%clk 0:00:10.9]} 52... Rf2+
{[%clk 0:00:12.2]} 53. Ke1 {[%clk 0:00:11.3]} 53... Ra2 {[%clk 0:00:12.4]} 54.
Rg1+ {[%clk 0:00:11.6]} 54... Bxg1 {[%clk 0:00:11.4]} 55. Nxb4 {[%clk 0:00:12]}
55... Rh2 {[%clk 0:00:10.5]} 56. Bc6 {[%clk 0:00:10.5]} 56... Bc5 {[%clk
0:00:10]} 57. Bxd7 {[%clk 0:00:09.9]} 57... Bxb4+ {[%clk 0:00:10.5]} 0-1

[Event "*** Titled Tuesday Blitz"]
[Site "Chess.com"]
[Date "2021.02.09"]
[Round "8"]
[White "Anna_ChessMate"]
[Black "GoltsevDmitry2000"]
[Result "0-1"]
[WhiteElo "2572"]
[BlackElo "2732"]
[TimeControl "180+1"]
[EndTime "11:30:13 PST"]
[Termination "GoltsevDmitry2000 won by resignation"]

1. d4 {[%clk 0:03:00.9]} 1... Nf6 {[%clk 0:02:38.2]} 2. c4 {[%clk 0:03:01.3]}
2... e6 {[%clk 0:02:35.9]} 3. Nf3 {[%clk 0:03:00.9]} 3... Bb4+ {[%clk
0:02:35.1]} 4. Bd2 {[%clk 0:03:00.8]} 4... Qe7 {[%clk 0:02:33.8]} 5. g3 {[%clk
0:03:00.5]} 5... Nc6 {[%clk 0:02:32.6]} 6. Bg2 {[%clk 0:03:00.4]} 6... Bxd2+
{[%clk 0:02:31.9]} 7. Nbxd2 {[%clk 0:02:59.5]} 7... d6 {[%clk 0:02:32.5]} 8. O-O
{[%clk 0:02:58.7]} 8... O-O {[%clk 0:02:32.2]} 9. e4 {[%clk 0:02:58.5]} 9... e5
{[%clk 0:02:31.5]} 10. d5 {[%clk 0:02:59]} 10... Nb8 {[%clk 0:02:30.3]} 11. b4
{[%clk 0:02:58.2]} 11... a5 {[%clk 0:02:28.4]} 12. a3 {[%clk 0:02:58.2]} 12...
Na6 {[%clk 0:02:27]} 13. Rb1 {[%clk 0:02:57.6]} 13... Bd7 {[%clk 0:02:24.3]} 14.
Re1 {[%clk 0:02:56]} 14... axb4 {[%clk 0:02:20.1]} 15. axb4 {[%clk 0:02:56.9]}
15... c6 {[%clk 0:02:16]} 16. c5 {[%clk 0:01:54.5]} 16... dxc5 {[%clk
0:02:12.8]} 17. Nc4 {[%clk 0:01:50.3]} 17... Nxb4 {[%clk 0:02:07]} 18. d6 {[%clk
0:01:45.2]} 18... Qe6 {[%clk 0:02:04.2]} 19. Ncxe5 {[%clk 0:01:23.8]} 19... Rfd8
{[%clk 0:02:02.8]} 20. Nxd7 {[%clk 0:01:09.1]} 20... Rxd7 {[%clk 0:02:03.7]} 21.
e5 {[%clk 0:01:10]} 21... Nfd5 {[%clk 0:02:03.2]} 22. Ng5 {[%clk 0:01:06.4]}
22... Qg6 {[%clk 0:02:01.4]} 23. Qg4 {[%clk 0:00:48.4]} 23... f5 {[%clk
0:01:40]} 24. Qh4 {[%clk 0:00:18.2]} 24... h6 {[%clk 0:01:33.3]} 25. Nh3 {[%clk
0:00:18.6]} 25... Qg4 {[%clk 0:01:23.9]} 26. Qxg4 {[%clk 0:00:12.1]} 26... fxg4
{[%clk 0:01:24.8]} 27. Nf4 {[%clk 0:00:10.7]} 27... Re8 {[%clk 0:01:17.7]} 28.
Nxd5 {[%clk 0:00:08.4]} 28... cxd5 {[%clk 0:01:18.2]} 29. Rxb4 {[%clk
0:00:05.6]} 29... cxb4 {[%clk 0:01:16.6]} 30. Bxd5+ {[%clk 0:00:05.7]} 30... Kh8
{[%clk 0:01:11.8]} 31. Re3 {[%clk 0:00:06.4]} 31... g5 {[%clk 0:01:05.6]} 32. h3
{[%clk 0:00:06.8]} 32... gxh3 {[%clk 0:01:05.4]} 33. f4 {[%clk 0:00:07.4]} 33...
g4 {[%clk 0:00:44.9]} 34. Rb3 {[%clk 0:00:05.7]} 34... Kg7 {[%clk 0:00:42.8]}
35. Rxb4 {[%clk 0:00:05.9]} 35... Kg6 {[%clk 0:00:43]} 36. Be4+ {[%clk
0:00:05.6]} 36... Kf7 {[%clk 0:00:42]} 37. Bf5 {[%clk 0:00:06.1]} 37... Rxd6
{[%clk 0:00:30.5]} 38. exd6 {[%clk 0:00:06]} 38... Re1+ {[%clk 0:00:30.8]} 39.
Kh2 {[%clk 0:00:04.4]} 39... Re2+ {[%clk 0:00:30.8]} 40. Kh1 {[%clk 0:00:04.5]}
40... Re1+ {[%clk 0:00:31.3]} 41. Kh2 {[%clk 0:00:05.1]} 41... Re2+ {[%clk
0:00:31.8]} 42. Kg1 {[%clk 0:00:05.7]} 42... Re1+ {[%clk 0:00:32.1]} 43. Kf2
{[%clk 0:00:03.4]} 43... h2 {[%clk 0:00:31.3]} 44. Rxb7+ {[%clk 0:00:02.3]}
44... Kf6 {[%clk 0:00:22.8]} 45. d7 {[%clk 0:00:02.8]} 45... Rf1+ {[%clk
0:00:22.7]} 46. Ke2 {[%clk 0:00:02.7]} 46... Re1+ {[%clk 0:00:23]} 47. Kf2
{[%clk 0:00:02.5]} 47... Rf1+ {[%clk 0:00:17.3]} 48. Ke3 {[%clk 0:00:03.1]}
48... Re1+ {[%clk 0:00:17.2]} 49. Kd4 {[%clk 0:00:03.7]} 49... Rd1+ {[%clk
0:00:16.4]} 50. Bd3 {[%clk 0:00:04.2]} 50... Ke7 {[%clk 0:00:14.9]} 51. Ke5
{[%clk 0:00:02]} 51... h1=Q {[%clk 0:00:12.8]} 52. d8=Q+ {[%clk 0:00:02.2]}
52... Kxd8 {[%clk 0:00:12.8]} 53. Be4 {[%clk 0:00:01.8]} 53... Re1 {[%clk
0:00:12.1]} 54. Rb8+ {[%clk 0:00:02.3]} 54... Kc7 {[%clk 0:00:12.3]} 55. Rb7+
{[%clk 0:00:03.2]} 55... Kc8 {[%clk 0:00:12.7]} 56. Kd6 {[%clk 0:00:03.8]} 56...
Qxe4 {[%clk 0:00:12.2]} 0-1

[Event "*** Titled Tuesday Blitz"]
[Site "Chess.com"]
[Date "2021.02.09"]
[Round "8"]
[White "tan275"]
[Black "LogoCzar"]
[Result "0-1"]
[WhiteElo "2248"]
[BlackElo "2395"]
[TimeControl "180+1"]
[EndTime "11:30:13 PST"]
[Termination "LogoCzar won on time"]

1. d4 {[%clk 0:03:00.9]} 1... c6 {[%clk 0:02:59.7]} 2. c4 {[%clk 0:03:01.2]}
2... d5 {[%clk 0:02:59.8]} 3. Nc3 {[%clk 0:02:59.9]} 3... Nf6 {[%clk 0:02:59.8]}
4. e3 {[%clk 0:02:59.8]} 4... e6 {[%clk 0:03:00]} 5. Bd3 {[%clk 0:02:59.2]} 5...
Nbd7 {[%clk 0:02:58.4]} 6. Nge2 {[%clk 0:02:59.6]} 6... dxc4 {[%clk 0:02:53.5]}
7. Bxc4 {[%clk 0:02:58.8]} 7... b5 {[%clk 0:02:53.6]} 8. Bd3 {[%clk 0:02:56.3]}
8... Bb7 {[%clk 0:02:53.3]} 9. O-O {[%clk 0:02:50.6]} 9... a6 {[%clk 0:02:51.9]}
10. Ne4 {[%clk 0:02:44.4]} 10... c5 {[%clk 0:02:49.3]} 11. Nxc5 {[%clk
0:02:39.1]} 11... Nxc5 {[%clk 0:02:43.6]} 12. dxc5 {[%clk 0:02:40]} 12... Bxc5
{[%clk 0:02:43.7]} 13. a3 {[%clk 0:02:34.4]} 13... O-O {[%clk 0:02:42.4]} 14. b4
{[%clk 0:02:33.4]} 14... Bd6 {[%clk 0:02:39.4]} 15. Bb2 {[%clk 0:02:32]} 15...
Qe7 {[%clk 0:02:23.3]} 16. Ng3 {[%clk 0:02:16.7]} 16... Rfd8 {[%clk 0:02:20.2]}
17. Nh5 {[%clk 0:02:11.4]} 17... Nxh5 {[%clk 0:02:12.2]} 18. Qxh5 {[%clk
0:02:10.2]} 18... Bxh2+ {[%clk 0:02:09.3]} 19. Qxh2 {[%clk 0:02:02.2]} 19...
Rxd3 {[%clk 0:02:08.8]} 20. Rac1 {[%clk 0:02:01.6]} 20... Rad8 {[%clk
0:02:06.8]} 21. Rc7 {[%clk 0:01:57.9]} 21... R3d7 {[%clk 0:02:06.7]} 22. Rxd7
{[%clk 0:01:51.9]} 22... Rxd7 {[%clk 0:02:06.7]} 23. Rc1 {[%clk 0:01:46.8]}
23... f6 {[%clk 0:02:04.5]} 24. Bd4 {[%clk 0:01:36.9]} 24... e5 {[%clk
0:01:57.3]} 25. Bc5 {[%clk 0:01:33.5]} 25... Qd8 {[%clk 0:01:56.9]} 26. Qh3
{[%clk 0:01:28]} 26... Rd1+ {[%clk 0:01:41.7]} 27. Rxd1 {[%clk 0:01:27.3]} 27...
Qxd1+ {[%clk 0:01:40.3]} 28. Kh2 {[%clk 0:01:27.7]} 28... Qd5 {[%clk 0:01:40.1]}
29. e4 {[%clk 0:01:18.4]} 29... Qc6 {[%clk 0:01:35.6]} 30. f3 {[%clk 0:01:15.7]}
30... Bc8 {[%clk 0:01:32.4]} 31. Qh4 {[%clk 0:01:06.5]} 31... Be6 {[%clk
0:01:30.1]} 32. Qe1 {[%clk 0:01:01]} 32... Qd7 {[%clk 0:01:29.5]} 33. Qc3 {[%clk
0:00:57.4]} 33... h5 {[%clk 0:01:25.7]} 34. Be3 {[%clk 0:00:52.4]} 34... h4
{[%clk 0:01:22.8]} 35. Qc5 {[%clk 0:00:47.1]} 35... h3 {[%clk 0:01:21.3]} 36.
gxh3 {[%clk 0:00:43.2]} 36... Bxh3 {[%clk 0:01:19.4]} 37. Qd5+ {[%clk
0:00:42.8]} 37... Qxd5 {[%clk 0:01:17.5]} 38. exd5 {[%clk 0:00:42.1]} 38... Bf1
{[%clk 0:01:11.1]} 39. Kg3 {[%clk 0:00:36.9]} 39... Kf7 {[%clk 0:01:08.6]} 40.
Bc5 {[%clk 0:00:34.9]} 40... Bc4 {[%clk 0:01:07.3]} 41. d6 {[%clk 0:00:32.2]}
41... Be6 {[%clk 0:01:07.3]} 42. Kf2 {[%clk 0:00:29.2]} 42... g5 {[%clk
0:01:01.2]} 43. Bb6 {[%clk 0:00:26.4]} 43... g4 {[%clk 0:00:56.7]} 44. fxg4
{[%clk 0:00:21.9]} 44... Bxg4 {[%clk 0:00:56.8]} 45. Ke3 {[%clk 0:00:21.6]}
45... Ke6 {[%clk 0:00:53.1]} 46. Bc7 {[%clk 0:00:17.7]} 46... f5 {[%clk
0:00:47.4]} 47. Kd3 {[%clk 0:00:12.8]} 47... f4 {[%clk 0:00:46.4]} 48. Ke4
{[%clk 0:00:11.8]} 48... Bf5+ {[%clk 0:00:46.1]} 49. Kf3 {[%clk 0:00:11.6]}
49... Kd7 {[%clk 0:00:44.3]} 50. Bb8 {[%clk 0:00:09.9]} 50... Bg6 {[%clk
0:00:33.9]} 51. Bc7 {[%clk 0:00:10]} 51... Be8 {[%clk 0:00:30.8]} 52. Bb8 {[%clk
0:00:09.8]} 52... Ke6 {[%clk 0:00:30.8]} 53. Ke4 {[%clk 0:00:08.9]} 53... Bc6+
{[%clk 0:00:31]} 54. Kd3 {[%clk 0:00:07.6]} 54... Kf5 {[%clk 0:00:28.8]} 55. Bc7
{[%clk 0:00:04.9]} 55... Kg4 {[%clk 0:00:22.9]} 56. Ke2 {[%clk 0:00:02.6]} 56...
e4 {[%clk 0:00:21.8]} 57. Kf2 {[%clk 0:00:02.4]} 57... e3+ {[%clk 0:00:21.9]}
58. Ke2 {[%clk 0:00:02.1]} 58... Kg3 {[%clk 0:00:20.3]} 59. Bb8 {[%clk 0:00:01]}
59... Kg2 {[%clk 0:00:20]} 0-1